{"text_format":"3","workbook":"xlsx","n_sheets":2,"sheets":["Start","Persönliches Monatsbudget"],"not_rendered":{"images":1},"read":"whole","date_system":"1900"}

{"sheet":"Start","index":0,"n_rows":7,"n_cols":2,"rows_kept":7}
[null,"Über diese Vorlage"]
[null,"Verwenden Sie dieses Arbeitsblatt für ein persönliches Monatsbudget, um Ihre erwarteten und tatsächlichen Einkünfte und die erwarteten und tatsächlichen Kosten nachzuverfolgen."]
[null,"Geben Sie die in verschiedenen Kategorien angefallenen Ausgaben in entsprechenden Tabellen ein."]
[null,"Der erwartete Saldo, der tatsächliche Saldo und die Differenz werden automatisch berechnet."]
[null,"Anmerkung: "]
[null,"Zusätzliche Anweisungen wurden in Spalte A auf dem Arbeitsblatt PERSÖNLICHES MONATSBUDGET bereitgestellt. Diese Texte wurden absichtlich ausgeblendet. Um die Texte zu entfernen, wählen Sie Spalte A und dann ENTF aus. Um die Texte einzublenden, wählen Sie Spalte A aus, und ändern Sie die Schriftfarbe."]
[null,"Um mehr über Tabellen zu erfahren, drücken Sie auf dem Arbeitsblatt die UMSCHALTTASTE und dann F10 innerhalb einer Tabelle, wählen Sie die Option TABELLE und dann ALTERNATIVTEXT aus."]

{"sheet":"Persönliches Monatsbudget","index":1,"n_rows":66,"n_cols":10,"rows_kept":66,"merged":[[3,1,3,2],[3,4,4,6],[3,7,4,7],[5,4,6,6],[5,7,6,7],[7,4,8,6],[7,7,8,7],[8,1,8,2],[24,6,24,9],[25,1,25,4],[33,6,33,9],[35,1,35,4],[40,6,40,9],[42,1,42,4],[46,6,46,9],[48,1,48,4],[52,6,52,9],[56,1,56,4],[59,6,59,9],[60,6,61,8],[60,9,61,9],[62,6,63,8],[62,9,63,9],[64,6,65,8],[64,9,65,9],[66,1,66,4]]}
["Erstellen Sie auf diesem Arbeitsblatt ein persönliches Monatsbudget. Nützliche Anweisungen zum Verwenden dieses Arbeitsblatts befinden sich in Zellen in dieser Spalte. Drücken Sie die NACH-UNTEN-TASTE, um anzufangen."]
["Der Titel dieses Arbeitsblatts befindet sich in der Zelle rechts. Die nächste Anweisung finden Sie in Zelle A5.",null,"Persönliches Monatsbudget"]
[]
["Die Beschriftung „Erwartete Monatseinkünfte“ befindet sich in der Zelle rechts. Geben Sie die „Einkünfte 1“ in Zelle C5 und die „Zusatzeinkünfte“ in Zelle C6 ein, um die „Summe der monatlichen Einkünfte“ in Zelle C7 zu berechnen. Die nächste Anweisung finden Sie in Zelle A7.","Erwartete Monatseinkünfte",null,null,"Erwarteter Saldo\n(Erwartete Einkünfte abzüglich Ausgaben)",null,null,{"$f":"C7-J61","v":{"v":3405,"d":"3,405.00 €"}}]
[null,"Einkünfte 1",{"v":4300,"d":"4,300.00 €"}]
[null,"Zusatzeinkünfte",{"v":300,"d":"300.00 €"},null,"Tatsächlicher Saldo\n(Tatsächliche Einkünfte abzüglich Ausgaben)",null,null,{"$f":"C12-J63","v":{"v":3064,"d":"3,064.00 €"}}]
["Der erwartete Saldo wird in Zelle H4, der tatsächliche Saldo in H6 und die Differenz in H8 automatisch berechnet. Die nächste Anweisung finden Sie in Zelle A9.","Summe der monatlichen Einkünfte",{"$f":"SUM(C5:C6)","v":{"v":4600,"d":"4,600.00 €"}}]
[{"$nulls":4},"Differenz\n(Tatsächliche abzüglich erwartete)",null,null,{"$f":"H6-H4","v":{"v":-341,"d":"-341.00 €"}}]
["Die Beschriftung „Tatsächliche Monatseinkünfte\" befindet sich in der Zelle rechts. Geben Sie die „Einkünfte 1“ in Zelle C10 und die „Zusatzeinkünfte“ in Zelle C11 ein, um die „Summe der monatlichen Einkünfte“ in Zelle C12 zu berechnen. Die nächste Anweisung finden Sie in Zelle A14.","Monats-Ist-Einkommen"]
[null,"Einkünfte 1",{"v":4000,"d":"4,000.00 €"}]
[null,"Zusatzeinkünfte",{"v":300,"d":"300.00 €"}]
[null,"Summe der monatlichen Einkünfte",{"$f":"SUM(C10:C11)","v":{"v":4300,"d":"4,300.00 €"}}]
[]
["Geben Sie die Details in die Tabelle „Wohnen“ ein, beginnend mit der rechten Zelle, und in die Tabelle „Unterhaltung“, beginnend mit Zelle G14. Die nächste Anweisung finden Sie in Zelle A27.","WOHNEN","Erwartete Kosten","Tatsächliche Kosten","Differenz",null,"UNTERHALTUNG","Erwartete Kosten","Tatsächliche Kosten","Differenz"]
[null,"Hypothek oder Miete",{"v":1000,"d":"1,000.00 €"},{"v":1000,"d":"1,000.00 €"},{"$f":"Wohnen[[#This Row],[Erwartete Kosten]]-Wohnen[[#This Row],[Tatsächliche Kosten]]","v":{"v":0,"d":"0.00 €"}},null,"Video/DVD",null,null,{"$f":"Unterhaltung[[#This Row],[Erwartete Kosten]]-Unterhaltung[[#This Row],[Tatsächliche Kosten]]","v":{"v":0,"d":"0.00 €"}}]
[null,"Telefon",{"v":54,"d":"54.00 €"},{"v":100,"d":"100.00 €"},{"$f":"Wohnen[[#This Row],[Erwartete Kosten]]-Wohnen[[#This Row],[Tatsächliche Kosten]]","v":{"v":-46,"d":"-46.00 €"}},null,"CDs",null,null,{"$f":"Unterhaltung[[#This Row],[Erwartete Kosten]]-Unterhaltung[[#This Row],[Tatsächliche Kosten]]","v":{"v":0,"d":"0.00 €"}}]
[null,"Strom",{"v":44,"d":"44.00 €"},{"v":56,"d":"56.00 €"},{"$f":"Wohnen[[#This Row],[Erwartete Kosten]]-Wohnen[[#This Row],[Tatsächliche Kosten]]","v":{"v":-12,"d":"-12.00 €"}},null,"Filme",null,null,{"$f":"Unterhaltung[[#This Row],[Erwartete Kosten]]-Unterhaltung[[#This Row],[Tatsächliche Kosten]]","v":{"v":0,"d":"0.00 €"}}]
[null,"Gas",{"v":22,"d":"22.00 €"},{"v":28,"d":"28.00 €"},{"$f":"Wohnen[[#This Row],[Erwartete Kosten]]-Wohnen[[#This Row],[Tatsächliche Kosten]]","v":{"v":-6,"d":"-6.00 €"}},null,"Konzerte",null,null,{"$f":"Unterhaltung[[#This Row],[Erwartete Kosten]]-Unterhaltung[[#This Row],[Tatsächliche Kosten]]","v":{"v":0,"d":"0.00 €"}}]
[null,"Wasser und Abwasser",{"v":8,"d":"8.00 €"},{"v":8,"d":"8.00 €"},{"$f":"Wohnen[[#This Row],[Erwartete Kosten]]-Wohnen[[#This Row],[Tatsächliche Kosten]]","v":{"v":0,"d":"0.00 €"}},null,"Sportveranstaltungen",null,null,{"$f":"Unterhaltung[[#This Row],[Erwartete Kosten]]-Unterhaltung[[#This Row],[Tatsächliche Kosten]]","v":{"v":0,"d":"0.00 €"}}]
[null,"Kabelfernsehen",{"v":34,"d":"34.00 €"},{"v":34,"d":"34.00 €"},{"$f":"Wohnen[[#This Row],[Erwartete Kosten]]-Wohnen[[#This Row],[Tatsächliche Kosten]]","v":{"v":0,"d":"0.00 €"}},null,"Theater",null,null,{"$f":"Unterhaltung[[#This Row],[Erwartete Kosten]]-Unterhaltung[[#This Row],[Tatsächliche Kosten]]","v":{"v":0,"d":"0.00 €"}}]
[null,"Müllabfuhr",{"v":10,"d":"10.00 €"},{"v":10,"d":"10.00 €"},{"$f":"Wohnen[[#This Row],[Erwartete Kosten]]-Wohnen[[#This Row],[Tatsächliche Kosten]]","v":{"v":0,"d":"0.00 €"}},null,"Sonstiges",null,null,{"$f":"Unterhaltung[[#This Row],[Erwartete Kosten]]-Unterhaltung[[#This Row],[Tatsächliche Kosten]]","v":{"v":0,"d":"0.00 €"}}]
[null,"Wartung oder Reparaturen",{"v":23,"d":"23.00 €"},{"v":0,"d":"0.00 €"},{"$f":"Wohnen[[#This Row],[Erwartete Kosten]]-Wohnen[[#This Row],[Tatsächliche Kosten]]","v":{"v":23,"d":"23.00 €"}},null,"Sonstiges",null,null,{"$f":"Unterhaltung[[#This Row],[Erwartete Kosten]]-Unterhaltung[[#This Row],[Tatsächliche Kosten]]","v":{"v":0,"d":"0.00 €"}}]
[null,"Lehrmittel",{"v":0,"d":"0.00 €"},{"v":0,"d":"0.00 €"},{"$f":"Wohnen[[#This Row],[Erwartete Kosten]]-Wohnen[[#This Row],[Tatsächliche Kosten]]","v":{"v":0,"d":"0.00 €"}},null,"Sonstiges",null,null,{"$f":"Unterhaltung[[#This Row],[Erwartete Kosten]]-Unterhaltung[[#This Row],[Tatsächliche Kosten]]","v":{"v":0,"d":"0.00 €"}}]
[null,"Sonstiges",{"v":0,"d":"0.00 €"},{"v":0,"d":"0.00 €"},{"$f":"Wohnen[[#This Row],[Erwartete Kosten]]-Wohnen[[#This Row],[Tatsächliche Kosten]]","v":{"v":0,"d":"0.00 €"}},null,"Zwischensumme",null,null,{"$f":"SUBTOTAL(109,Unterhaltung[Differenz])","v":{"v":0,"d":"0.00 €"}}]
[null,"Zwischensumme",null,null,{"$f":"SUBTOTAL(109,Wohnen[Differenz])","v":{"v":-41,"d":"-41.00 €"}}]
[{"$nulls":6},"DARLEHEN","Erwartete Kosten","Tatsächliche Kosten","Differenz"]
["Geben Sie die Details in die Tabelle „Beförderung“ ein, beginnend mit der rechten Zelle, und in die Tabelle „Darlehen“, beginnend mit der Zelle G26. Die nächste Anweisung finden Sie in Zelle A37.","BEFÖRDERUNG","Erwartete Kosten","Tatsächliche Kosten","Differenz",null,"Privat",null,null,{"$f":"Darlehen[[#This Row],[Erwartete Kosten]]-Darlehen[[#This Row],[Tatsächliche Kosten]]","v":{"v":0,"d":"0.00 €"}}]
[null,"Kfz-Kosten",null,null,{"$f":"Verkehrskosten[[#This Row],[Erwartete Kosten]]-Verkehrskosten[[#This Row],[Tatsächliche Kosten]]","v":{"v":0,"d":"0.00 €"}},null,"Studium",null,null,{"$f":"Darlehen[[#This Row],[Erwartete Kosten]]-Darlehen[[#This Row],[Tatsächliche Kosten]]","v":{"v":0,"d":"0.00 €"}}]
[null,"Bus-/Taxikosten",null,null,{"$f":"Verkehrskosten[[#This Row],[Erwartete Kosten]]-Verkehrskosten[[#This Row],[Tatsächliche Kosten]]","v":{"v":0,"d":"0.00 €"}},null,"Kreditkarte",null,null,{"$f":"Darlehen[[#This Row],[Erwartete Kosten]]-Darlehen[[#This Row],[Tatsächliche Kosten]]","v":{"v":0,"d":"0.00 €"}}]
[null,"Versicherungen",null,null,{"$f":"Verkehrskosten[[#This Row],[Erwartete Kosten]]-Verkehrskosten[[#This Row],[Tatsächliche Kosten]]","v":{"v":0,"d":"0.00 €"}},null,"Kreditkarte",null,null,{"$f":"Darlehen[[#This Row],[Erwartete Kosten]]-Darlehen[[#This Row],[Tatsächliche Kosten]]","v":{"v":0,"d":"0.00 €"}}]
[null,"Kfz-Steuer",null,null,{"$f":"Verkehrskosten[[#This Row],[Erwartete Kosten]]-Verkehrskosten[[#This Row],[Tatsächliche Kosten]]","v":{"v":0,"d":"0.00 €"}},null,"Kreditkarte",null,null,{"$f":"Darlehen[[#This Row],[Erwartete Kosten]]-Darlehen[[#This Row],[Tatsächliche Kosten]]","v":{"v":0,"d":"0.00 €"}}]
[null,"Kraftstoff",null,null,{"$f":"Verkehrskosten[[#This Row],[Erwartete Kosten]]-Verkehrskosten[[#This Row],[Tatsächliche Kosten]]","v":{"v":0,"d":"0.00 €"}},null,"Sonstiges",null,null,{"$f":"Darlehen[[#This Row],[Erwartete Kosten]]-Darlehen[[#This Row],[Tatsächliche Kosten]]","v":{"v":0,"d":"0.00 €"}}]
[null,"Wartung",null,null,{"$f":"Verkehrskosten[[#This Row],[Erwartete Kosten]]-Verkehrskosten[[#This Row],[Tatsächliche Kosten]]","v":{"v":0,"d":"0.00 €"}},null,"Zwischensumme",null,null,{"$f":"SUBTOTAL(109,Darlehen[Differenz])","v":{"v":0,"d":"0.00 €"}}]
[null,"Sonstiges",null,null,{"$f":"Verkehrskosten[[#This Row],[Erwartete Kosten]]-Verkehrskosten[[#This Row],[Tatsächliche Kosten]]","v":{"v":0,"d":"0.00 €"}}]
[null,"Zwischensumme",null,null,{"$f":"SUBTOTAL(109,Verkehrskosten[Differenz])","v":{"v":0,"d":"0.00 €"}},null,"STEUERN","Erwartete Kosten","Tatsächliche Kosten","Differenz"]
[{"$nulls":6},"EkSt",null,null,{"$f":"Steuern[[#This Row],[Erwartete Kosten]]-Steuern[[#This Row],[Tatsächliche Kosten]]","v":{"v":0,"d":"0.00 €"}}]
["Geben Sie die Details in die Tabelle „Versicherungen“ ein, beginnend mit der rechten Zelle, und in die Tabelle „Steuern“, beginnend mit Zelle G35. Die nächste Anweisung finden Sie in Zelle A44.","VERSICHERUNGEN","Erwartete Kosten","Tatsächliche Kosten","Differenz",null,"USt",null,null,{"$f":"Steuern[[#This Row],[Erwartete Kosten]]-Steuern[[#This Row],[Tatsächliche Kosten]]","v":{"v":0,"d":"0.00 €"}}]
[null,"Haus",null,null,{"$f":"Versicherungen[[#This Row],[Erwartete Kosten]]-Versicherungen[[#This Row],[Tatsächliche Kosten]]","v":{"v":0,"d":"0.00 €"}},null,"Kommunalsteuern",null,null,{"$f":"Steuern[[#This Row],[Erwartete Kosten]]-Steuern[[#This Row],[Tatsächliche Kosten]]","v":{"v":0,"d":"0.00 €"}}]
[null,"Krankenversicherung",null,null,{"$f":"Versicherungen[[#This Row],[Erwartete Kosten]]-Versicherungen[[#This Row],[Tatsächliche Kosten]]","v":{"v":0,"d":"0.00 €"}},null,"Sonstiges",null,null,{"$f":"Steuern[[#This Row],[Erwartete Kosten]]-Steuern[[#This Row],[Tatsächliche Kosten]]","v":{"v":0,"d":"0.00 €"}}]
[null,"Lebensversicherung",null,null,{"$f":"Versicherungen[[#This Row],[Erwartete Kosten]]-Versicherungen[[#This Row],[Tatsächliche Kosten]]","v":{"v":0,"d":"0.00 €"}},null,"Zwischensumme",null,null,{"$f":"SUBTOTAL(109,Steuern[Differenz])","v":{"v":0,"d":"0.00 €"}}]
[null,"Sonstiges",null,null,{"$f":"Versicherungen[[#This Row],[Erwartete Kosten]]-Versicherungen[[#This Row],[Tatsächliche Kosten]]","v":{"v":0,"d":"0.00 €"}}]
[null,"Zwischensumme",null,null,{"$f":"SUBTOTAL(109,Versicherungen[Differenz])","v":{"v":0,"d":"0.00 €"}},null,"SPAREINLAGEN ODER KAPITALANLAGEN","Erwartete Kosten","Tatsächliche Kosten","Differenz"]
[{"$nulls":6},"Altersvorsorgekonto",null,null,{"$f":"Spareinlagen[[#This Row],[Erwartete Kosten]]-Spareinlagen[[#This Row],[Tatsächliche Kosten]]","v":{"v":0,"d":"0.00 €"}}]
["Geben Sie die Details in die Tabelle „Essen“ ein, beginnend mit der Zelle rechts, und in die Tabelle „Spareinlagen“, beginnend mit Zelle G42. Die nächste Anweisung finden Sie in Zelle A50.","ESSEN","Erwartete Kosten","Tatsächliche Kosten","Differenz",null,"Anlagekonto",null,null,{"$f":"Spareinlagen[[#This Row],[Erwartete Kosten]]-Spareinlagen[[#This Row],[Tatsächliche Kosten]]","v":{"v":0,"d":"0.00 €"}}]
[null,"Lebensmittel",null,null,{"$f":"Essen[[#This Row],[Erwartete Kosten]]-Essen[[#This Row],[Tatsächliche Kosten]]","v":{"v":0,"d":"0.00 €"}},null,"Sonstiges",null,null,{"$f":"Spareinlagen[[#This Row],[Erwartete Kosten]]-Spareinlagen[[#This Row],[Tatsächliche Kosten]]","v":{"v":0,"d":"0.00 €"}}]
[null,"Ausgehen",null,null,{"$f":"Essen[[#This Row],[Erwartete Kosten]]-Essen[[#This Row],[Tatsächliche Kosten]]","v":{"v":0,"d":"0.00 €"}},null,"Zwischensumme",null,null,{"$f":"SUBTOTAL(109,Spareinlagen[Differenz])","v":{"v":0,"d":"0.00 €"}}]
[null,"Sonstiges",null,null,{"$f":"Essen[[#This Row],[Erwartete Kosten]]-Essen[[#This Row],[Tatsächliche Kosten]]","v":{"v":0,"d":"0.00 €"}}]
[null,"Zwischensumme",null,null,{"$f":"SUBTOTAL(109,Essen[Differenz])","v":{"v":0,"d":"0.00 €"}},null,"GESCHENKE UND SPENDEN","Erwartete Kosten","Tatsächliche Kosten","Differenz"]
[{"$nulls":6},"Spenden 1",null,null,{"$f":"Geschenke[[#This Row],[Erwartete Kosten]]-Geschenke[[#This Row],[Tatsächliche Kosten]]","v":{"v":0,"d":"0.00 €"}}]
["Geben Sie die Details in die Tabelle „Haustiere“ ein, beginnend mit der rechten Zelle, und in die Tabelle „Geschenke“, beginnend mit Zelle G48. Die nächste Anweisung finden Sie in Zelle A58.","HAUSTIERE","Erwartete Kosten","Tatsächliche Kosten","Differenz",null,"Spenden 2",null,null,{"$f":"Geschenke[[#This Row],[Erwartete Kosten]]-Geschenke[[#This Row],[Tatsächliche Kosten]]","v":{"v":0,"d":"0.00 €"}}]
[null,"Essen",null,null,{"$f":"Haustiere[[#This Row],[Erwartete Kosten]]-Haustiere[[#This Row],[Tatsächliche Kosten]]","v":{"v":0,"d":"0.00 €"}},null,"Spenden 3",null,null,{"$f":"Geschenke[[#This Row],[Erwartete Kosten]]-Geschenke[[#This Row],[Tatsächliche Kosten]]","v":{"v":0,"d":"0.00 €"}}]
[null,"Arztkosten",null,null,{"$f":"Haustiere[[#This Row],[Erwartete Kosten]]-Haustiere[[#This Row],[Tatsächliche Kosten]]","v":{"v":0,"d":"0.00 €"}},null,"Zwischensumme",null,null,{"$f":"SUBTOTAL(109,Geschenke[Differenz])","v":{"v":0,"d":"0.00 €"}}]
[null,"Fellpflege",null,null,{"$f":"Haustiere[[#This Row],[Erwartete Kosten]]-Haustiere[[#This Row],[Tatsächliche Kosten]]","v":{"v":0,"d":"0.00 €"}}]
[null,"Spielzeuge",null,null,{"$f":"Haustiere[[#This Row],[Erwartete Kosten]]-Haustiere[[#This Row],[Tatsächliche Kosten]]","v":{"v":0,"d":"0.00 €"}},null,"RECHTSKOSTEN","Erwartete Kosten","Tatsächliche Kosten","Differenz"]
[null,"Sonstiges",null,null,{"$f":"Haustiere[[#This Row],[Erwartete Kosten]]-Haustiere[[#This Row],[Tatsächliche Kosten]]","v":{"v":0,"d":"0.00 €"}},null,"Anwalt",null,null,{"$f":"Rechtskosten[[#This Row],[Erwartete Kosten]]-Rechtskosten[[#This Row],[Tatsächliche Kosten]]","v":{"v":0,"d":"0.00 €"}}]
[null,"Zwischensumme",null,null,{"$f":"SUBTOTAL(109,Haustiere[Differenz])","v":{"v":0,"d":"0.00 €"}},null,"Unterhalt",null,null,{"$f":"Rechtskosten[[#This Row],[Erwartete Kosten]]-Rechtskosten[[#This Row],[Tatsächliche Kosten]]","v":{"v":0,"d":"0.00 €"}}]
[{"$nulls":6},"Zahlungen für Pfändungen oder Gerichtsurteile",null,null,{"$f":"Rechtskosten[[#This Row],[Erwartete Kosten]]-Rechtskosten[[#This Row],[Tatsächliche Kosten]]","v":{"v":0,"d":"0.00 €"}}]
["Geben Sie die Details in die Tabelle „Körperpflege“ ein, beginnend mit der rechten Zelle, und in die Tabelle „Rechtskosten“, beginnend mit Zelle G54. Die nächste Anweisung finden Sie in Zelle A61.","KÖRPERPFLEGE","Erwartete Kosten","Tatsächliche Kosten","Differenz",null,"Sonstiges",null,null,{"$f":"Rechtskosten[[#This Row],[Erwartete Kosten]]-Rechtskosten[[#This Row],[Tatsächliche Kosten]]","v":{"v":0,"d":"0.00 €"}}]
[null,"Arztkosten",null,null,{"$f":"Körperpflege[[#This Row],[Erwartete Kosten]]-Körperpflege[[#This Row],[Tatsächliche Kosten]]","v":{"v":0,"d":"0.00 €"}},null,"Zwischensumme",null,null,{"$f":"SUBTOTAL(109,Rechtskosten[Differenz])","v":{"v":0,"d":"0.00 €"}}]
[null,"Haare/Nägel",null,null,{"$f":"Körperpflege[[#This Row],[Erwartete Kosten]]-Körperpflege[[#This Row],[Tatsächliche Kosten]]","v":{"v":0,"d":"0.00 €"}}]
["Die erwarteten Gesamtkosten werden in Zelle J61, die tatsächlichen Gesamtkosten in Zelle J63 und die Gesamtdifferenz in Zelle J65 automatisch berechnet.","Kleidung",null,null,{"$f":"Körperpflege[[#This Row],[Erwartete Kosten]]-Körperpflege[[#This Row],[Tatsächliche Kosten]]","v":{"v":0,"d":"0.00 €"}},null,"Summe der erwarteten Kosten",null,null,{"$f":"SUBTOTAL(109,Wohnen[Erwartete Kosten],Verkehrskosten[Erwartete Kosten],Versicherungen[Erwartete Kosten],Essen[Erwartete Kosten],Haustiere[Erwartete Kosten],Körperpflege[Erwartete Kosten],Unterhaltung[Erwartete Kosten],Darlehen[Erwartete Kosten],Steuern[Erwartete Kosten],Spareinlagen[Erwartete Kosten],Geschenke[Erwartete Kosten],Rechtskosten[Erwartete Kosten])","v":{"v":1195,"d":"1,195.00 €"}}]
[null,"Chemische Reinigung",null,null,{"$f":"Körperpflege[[#This Row],[Erwartete Kosten]]-Körperpflege[[#This Row],[Tatsächliche Kosten]]","v":{"v":0,"d":"0.00 €"}}]
[null,"Fitnesscenter",null,null,{"$f":"Körperpflege[[#This Row],[Erwartete Kosten]]-Körperpflege[[#This Row],[Tatsächliche Kosten]]","v":{"v":0,"d":"0.00 €"}},null,"Summe der tatsächlichen Kosten",null,null,{"$f":"SUBTOTAL(109,Wohnen[Tatsächliche Kosten],Verkehrskosten[Tatsächliche Kosten],Versicherungen[Tatsächliche Kosten],Essen[Tatsächliche Kosten],Haustiere[Tatsächliche Kosten],Körperpflege[Tatsächliche Kosten],Unterhaltung[Tatsächliche Kosten],Darlehen[Tatsächliche Kosten],Steuern[Tatsächliche Kosten],Spareinlagen[Tatsächliche Kosten],Geschenke[Tatsächliche Kosten],Rechtskosten[Tatsächliche Kosten])","v":{"v":1236,"d":"1,236.00 €"}}]
[null,"Vereinsbeiträge",null,null,{"$f":"Körperpflege[[#This Row],[Erwartete Kosten]]-Körperpflege[[#This Row],[Tatsächliche Kosten]]","v":{"v":0,"d":"0.00 €"}}]
[null,"Sonstiges",null,null,{"$f":"Körperpflege[[#This Row],[Erwartete Kosten]]-Körperpflege[[#This Row],[Tatsächliche Kosten]]","v":{"v":0,"d":"0.00 €"}},null,"Gesamtdifferenz",null,null,{"$f":"J61-J63","v":{"v":-41,"d":"-41.00 €"}}]
[null,"Zwischensumme",null,null,{"$f":"SUBTOTAL(109,Körperpflege[Differenz])","v":{"v":0,"d":"0.00 €"}}]